[Event "45th FIDE Olympiad 2024"]
[Site "Budapest"]
[Date "2024.09.18"]
[Round "7.61"]
[White "Gurel, Ediz"]
[Black "Salinas Herrera, Pablo"]
[Result "1-0"]
[ECO "C92"]
[WhiteElo "2602"]
[BlackElo "2479"]
[Annotator "RC"]
[PlyCount "115"]
[EventDate "2024.09.05"]
[EventType "team-tourn"]
[EventCountry "HUN"]
[SourceTitle "playchess.com"]
[Source "ChessBase"]
[SourceQuality "1"]
[WhiteTeam "Turkiye"]
[BlackTeam "Chile"]
[BlackTeamCountry "CHI"]
[TimeControl "40/5400+30:1800+30"]

1. e4 {[%emt 0:00:08]} e5 {[%emt 0:00:15]} 2. Nf3 {[%emt 0:00:10]} Nc6 {[%emt 0:00:06]} 3. Bb5 {[%emt 0:00:09]} a6 {[%emt 0:00:05]} 4. Ba4 {[%emt 0:00:11]} Nf6 {[%emt 0:00:06]} 5. O-O {[%emt 0:00:15]} Be7 {[%emt 0:00:10]} 6. Re1 {[%emt 0:00:29]} b5 {[%emt 0:00:05]} 7. Bb3 {[%emt 0:00:09]} d6 {[%emt 0:00:21]} 8. c3 {[%emt 0:00:12]} O-O {[%emt 0:00:11]} 9. h3 {[%emt 0:00:05]} Bd7 {[%emt 0:00:07]} 10. d4 {[%emt 0:00:43]} a5 {[%emt 0:00:15]} 11. Nbd2 {[%emt 0:05:42]} a4 {[%emt 0:02:13]} 12. Bc2 {[%emt 0:02:31]} Re8 {[%emt 0:00:10]} 13. Nf1 {[%emt 0:01:08]} h6 {[%emt 0:01:12]} 14. Ng3 {[%emt 0:00:28]} Bf8 {[%emt 0:00:06]} 15. Be3 {[%emt 0:05:26]} a3 {[%emt 0:01:56]} 16. b3 {[%emt 0:09:08]} exd4 {[%emt 0:00:07]} 17. cxd4 {[%emt 0:01:06]} Nb4 {[%emt 0:04:05]} 18. Bb1 {[%emt 0:12:58]} c5 {[%emt 0:02:59]} 19. Bd2 {[%emt 0:00:45]} Rc8 {[%emt 0:07:05]} 20. Bc3 {[%emt 0:11:50]} Nh7 {[%emt 0:07:08]} 21. Bd3 {[%emt 0:08:39]} Nxd3 {[%emt 0:07:55]} 22. Qxd3 {[%emt 0:00:06]} b4 {[%emt 0:00:30]} 23. Bd2 {[%emt 0:00:04]} Qa5 {[%emt 0:00:08]} 24. Rac1 {[%emt 0:10:49]} Bb5 {[%emt 0:09:54]} 25. Qe3 {[%emt 0:00:18]} c4 {[%emt 0:02:39]} 26. bxc4 {[%emt 0:00:05]} Bxc4 {[%emt 0:00:04]} 27. Rc2 {[%emt 0:01:43]} d5 {[%emt 0:03:09]} 28. Rec1 {[%emt 0:04:13]} Ba6 {[%emt 0:06:53]} 29. Ne5 {[%emt 0:04:08]} Rxc2 {[%emt 0:08:36]} 30. Rxc2 {[%emt 0:00:01]} f6 {[%emt 0:15:46]} 31. Ng6 {[%emt 0:02:16]} Bc4 {[%emt 0:01:30]} 32. Nf5 {[%emt 0:04:30]} Qa4 {[%emt 0:02:52]} 33. Rc1 {[%emt 0:02:53]} Qd7 {[%emt 0:02:43]} 34. Nxf8 {[%emt 0:05:04]} Nxf8 {[%emt 0:00:04]} 35. Qg3 {[%emt 0:01:34]} Rxe4 {[%emt 0:01:53]} 36. Bxh6 {[%emt 0:02:11]} Ne6 {[%emt 0:04:49]} 37. Be3 {[%emt 0:02:42]} Nf4 {[%emt 0:03:06]} 38. Nh6+ {[%emt 0:00:28]} Kh7 {[%emt 0:00:03]} 39. Bxf4 {[%emt 0:00:04]} gxh6 {[%emt 0:00:03]} 40. Bd2 {[%emt 0:00:40]} Qg7 {[%emt 0:03:55]} 41. Qd6 {[%emt 0:34:07]} Qe7 {[%emt 0:30:26]} 42. Qb8 {[%emt 0:00:00]} Re2 {[%emt 0:00:00]} 43. Bxb4 {[%emt 0:00:00]} Rb2 {[%emt 0:00:00]} 44. Bxe7 {[%emt 0:00:00]} Rxb8 {[%emt 0:00:00]} 45. Bxf6 {[%emt 0:00:00]} Rb2 {[%emt 0:00:00]} 46. Be7 {[%emt 0:00:00]} Rxa2 {[%emt 0:00:00]} 47. Bb4 {[%emt 0:00:00]} Kg6 {[%emt 0:00:00]} 48. f3 {[%emt 0:00:00]} Kf5 {[%emt 0:00:00]} 49. Re1 {[%emt 0:00:00]} Kg6 {[%emt 0:00:00]} 50. Kh2 {[%emt 0:00:00]} Re2 {[%emt 0:00:00]} 51. Rxe2 {[%emt 0:00:00]} Bxe2 {[%emt 0:00:00]} 52. Bxa3 {[%emt 0:00:00]} Bd3 {[%emt 0:00:00]} 53. g4 {[%emt 0:00:00]} Bb5 {[%emt 0:00:00]} 54. Kg3 {[%emt 0:00:00]} Bf1 {[%emt 0:00:00]} 55. f4 {[%emt 0:00:00]} Kg7 {[%emt 0:00:00]} 56. f5 {[%emt 0:00:00]} Bd3 {[%emt 0:00:00]} 57. Kf4 {[%emt 0:00:00]} Kf7 {[%emt 0:00:00]} 58. h4 {[%emt 0:00:00]} 1-0

[Event "45th FIDE Olympiad 2024"]
[Site "Budapest"]
[Date "2024.09.18"]
[Round "7.61"]
[White "Solomon, Joshua"]
[Black "Hamperl, Fred"]
[Result "0-1"]
[WhiteElo "1587"]
[BlackElo "1977"]
[PlyCount "90"]
[EventDate "2024.09.05"]
[EventType "team-tourn"]
[EventCountry "HUN"]
[WhiteTeam "Antigua and Barbuda"]
[BlackTeam "Guernsey"]
[TimeControl "40/5400+30:1800+30"]

1. d4 Nf6 2. c4 c6 3. Nc3 d5 4. Nf3 e6 5. g3 Nbd7 6. Bg2 Bd6 7. O-O O-O 8. Bg5 h6 9. Bxf6 Nxf6 10. c5 Bc7 11. e3 Re8 12. Rc1 e5 13. dxe5 Bxe5 14. Nxe5 Rxe5 15. Qd4 Qe8 16. b4 Bf5 17. a4 Rd8 18. b5 Ne4 19. bxc6 bxc6 20. Rb1 Nxc3 21. Qxc3 Bxb1 22. Rxb1 Re7 23. Qb4 Qd7 24. h4 Ree8 25. Kh2 Qc7 26. Qb7 Re7 27. Qb4 Kf8 28. a5 Ree8 29. Qb7 Qxb7 30. Rxb7 Re7 31. a6 Rxb7 32. axb7 Rb8 33. Bxd5 Rxb7 34. Bxc6 Rc7 35. Bd5 Rxc5 36. e4 a5 37. Kg2 a4 38. Ba2 Rc2 39. Bd5 Rd2 40. Bc4 Rd4 41. Ba2 Rxe4 42. Kf3 Rb4 43. Ke3 Rb2 44. Bd5 a3 45. Kd3 Rxf2 {0-} 0-1

[Event "45th FIDE Olympiad 2024"]
[Site "Budapest"]
[Date "2024.09.18"]
[Round "7.62"]
[White "Vasquez Schroeder, Rodrigo"]
[Black "Erdogmus, Yagiz Kaan"]
[Result "0-1"]
[ECO "C88"]
[WhiteElo "2457"]
[BlackElo "2592"]
[Annotator "TA"]
[PlyCount "86"]
[EventDate "2024.09.05"]
[EventType "team-tourn"]
[EventCountry "HUN"]
[SourceTitle "playchess.com"]
[Source "ChessBase"]
[SourceQuality "1"]
[WhiteTeam "Chile"]
[BlackTeam "Turkiye"]
[WhiteTeamCountry "CHI"]
[TimeControl "40/5400+30:1800+30"]

{[%evp 22,86,18,14,20,13,10,6,10,8,8,-16,-10,-12,-4,-4,0,0,0,0,0,0,0,-31,-33,-33,-24,-25,-23,-27,0,-7,0,0,0,0,0,-13,0,0,0,0,0,0,0,0,0,0,0,0,0,0,0,0,0,0,0,0,0,-731,-692,-5293,-5293,-5218,-5214,-29979,-29978]} 1. e4 {[%emt 0:00:06]} e5 {[%emt 0:00:04]} 2. Nf3 {[%emt 0:00:17]} Nc6 {[%emt 0:00:02]} 3. Bb5 {[%emt 0:00:08][%cal Bf1b5,Bb5a4,Ba4b3,Bb3a2][%mdl 32]} a6 {[%emt 0:00:04]} 4. Ba4 {[%emt 0:00:04]} Nf6 {[%emt 0:00:05]} 5. O-O {[%emt 0:00:13]} Be7 {[%emt 0:00:15]} 6. Re1 {[%emt 0:00:08]} b5 {[%emt 0:00:03]} 7. Bb3 {[%emt 0:00:03]} O-O {[%emt 0:00:04]} 8. a4 {[%emt 0:00:20]} Bb7 {[%emt 0:00:10]} 9. d3 {[%emt 0:00:17]} d6 {[%emt 0:00:51]} 10. Bd2 {[%emt 0:02:57]} Qd7 {[%emt 0:06:28]} 11. Nc3 {[%emt 0:04:34]} Na5 {[%emt 0:26:08]} 12. Ba2 {[%emt 0:00:25]} c5 {[%emt 0:01:05]} 13. Bg5 {[%emt 0:03:38]} b4 {[%emt 0:14:18]} 14. Bxf6 {[%emt 0:08:07]} Bxf6 {[%emt 0:00:15] The position is equal.} 15. Nd5 {[%emt 0:00:36] Threatens to win with Nxf6+.} Bd8 {[%emt 0:01:08]} 16. Ne3 {[%emt 0:02:44]} b3 {[%emt 0:04:22]} 17. Bxb3 {[%emt 0:00:47]} Nxb3 {[%emt 0:00:05]} 18. cxb3 {[%emt 0:00:03]} Ba5 {[%emt 0:03:24]} 19. Rf1 {[%emt 0:00:42]} Rab8 {[%emt 0:09:46]} 20. Nd2 {[%emt 0:02:08]} g6 {[%emt 0:05:06]} 21. Ndc4 {[%emt 0:01:45]} Bc7 {[%emt 0:00:13]} 22. Nd5 {[%emt 0:03:01]} Bxd5 {[%emt 0:01:03]} 23. exd5 {[%emt 0:00:06]} f5 {[%emt 0:00:20]} 24. f4 {[%emt 0:01:21]} exf4 {[%emt 0:00:15]} 25. Rxf4 {[%emt 0:00:07]} Qf7 {[%emt 0:00:20]} 26. Qf3 $1 {[%emt 0:01:50]} g5 {[%emt 0:01:32]} 27. Qg3 {[%emt 0:00:14]} Qg6 {[%emt 0:01:36]} ({But not} 27... Rxb3 $6 28. Qxg5+ Qg6 29. Qe7 $16) 28. Rf2 {[%emt 0:07:55]} f4 {[%emt 0:02:08]} 29. Qf3 {[%emt 0:00:29]} Rbe8 {[%emt 0:09:08]} 30. Raf1 {[%emt 0:01:39]} Bd8 {[%emt 0:01:54][%cal Bc7d8,Bd8f6,Bf6d4][%mdl 32] ...Bf6 would now be deadly.} (30... g4 $5 31. Qd1 $8 f3 $16) 31. g4 {[%emt 0:02:32]} Re7 {[%emt 0:09:34]} 32. Re2 {[%emt 0:04:36]} Rxe2 {[%emt 0:00:03]} 33. Qxe2 {[%emt 0:00:03]} Re8 {[%emt 0:00:02]} 34. Qf3 {[%emt 0:00:14]} Bf6 {[%emt 0:00:03]} 35. Kg2 {[%emt 0:00:35]} Bd4 {[%emt 0:00:05]} 36. h4 {[%emt 0:00:29]} h6 {[%emt 0:01:37]} (36... gxh4 37. Qxf4 Re2+ 38. Kh3) 37. hxg5 {[%emt 0:00:17]} hxg5 {[%emt 0:00:05]} 38. Rh1 {[%emt 0:00:31]} Re7 {[%emt 0:02:02]} 39. Kf1 {[%emt 0:03:44]} Qe8 {[%emt 0:02:51]} 40. Qd1 {[%emt 0:01:57][%mdl 8192] [#] Repels Re1+} (40. Nxd6 $11 Re1+ 41. Kg2 Re2+ 42. Kf1 Re1+ 43. Kg2 Re2+ 44. Kf1 Re1+) 40... f3 $1 $19 {[%emt 0:01:19][%mdl 512]} 41. Qd2 {[%emt 0:39:16]} (41. Nxd6 Qd7) 41... f2 {[%emt 0:02:36] ( -> ...Re1+)} 42. Kg2 {[%emt 0:00:00] [#]} f1=Q+ $1 {[%emt 0:01:16][%mdl 512]} 43. Kxf1 {[%emt 0:00:00]} (43. Rxf1 Re2+) 43... Qf7+ {[%emt 0:00:05] Weighted Error Value: White=0.51/Black=0.02 (flawless) .  Loses game:     	White=1     	---        Inaccurate:     	White=2     	---        OK:         	White=16    	Black=11     Best:        	---       	Black=1      Strong:       	White=1     	---        Brilliant:      	---       	Black=1} 0-1

[Event "45th FIDE Olympiad 2024"]
[Site "Budapest"]
[Date "2024.09.18"]
[Round "7.62"]
[White "Rowe, Peter"]
[Black "Matthew, Bailey"]
[Result "0-1"]
[WhiteElo "1973"]
[BlackElo "1548"]
[PlyCount "52"]
[EventDate "2024.09.05"]
[EventType "team-tourn"]
[EventCountry "HUN"]
[WhiteTeam "Guernsey"]
[BlackTeam "Antigua and Barbuda"]
[TimeControl "40/5400+30:1800+30"]

1. d4 Nf6 2. Nf3 d5 3. Bf4 c5 4. c3 Nc6 5. e3 Qb6 6. b3 cxd4 7. exd4 Bg4 8. Nbd2 e6 9. Be2 Be7 10. h3 Bh5 11. O-O O-O 12. Kh1 Rac8 13. Be3 Qc7 14. Bd3 Rfe8 15. Rg1 Bf8 16. Bg5 Bg6 17. Bxg6 hxg6 18. Re1 Ne7 19. c4 dxc4 20. bxc4 Red8 21. Qe2 Nf5 22. Nb3 Qxc4 23. Qxc4 Rxc4 24. Ne5 Rc2 25. Ng4 Be7 26. Rad1 Nxg4 {0-} 0-1

[Event "45th FIDE Olympiad 2024"]
[Site "Budapest"]
[Date "2024.09.18"]
[Round "7.63"]
[White "Sanal, Vahap"]
[Black "Lopez Silva, Hugo"]
[Result "1-0"]
[ECO "E61"]
[WhiteElo "2581"]
[BlackElo "2379"]
[Annotator "TA"]
[PlyCount "61"]
[EventDate "2024.09.05"]
[EventType "team-tourn"]
[EventCountry "HUN"]
[SourceTitle "playchess.com"]
[Source "ChessBase"]
[SourceQuality "1"]
[WhiteTeam "Turkiye"]
[BlackTeam "Chile"]
[BlackTeamCountry "CHI"]
[TimeControl "40/5400+30:1800+30"]

{[%evp 20,61,-32,-39,-35,-39,-37,-39,-40,-41,-38,-38,-35,-42,-35,-47,-34,-47,-47,-80,0,0,0,0,0,0,0,0,0,0,166,155,212,201,212,188,273,221,376,266,1031,1021,1623,1507]} 1. d4 {[%emt 0:00:07]} Nf6 {[%emt 0:03:35]} 2. Nf3 {[%emt 0:00:57]} g6 {[%emt 0:00:04]} 3. Bf4 {[%emt 0:00:20]} Bg7 {[%emt 0:00:17]} 4. e3 {[%emt 0:00:20]} O-O {[%emt 0:01:16]} 5. Be2 {[%emt 0:00:19]} d6 {[%emt 0:00:41]} 6. h3 {[%emt 0:00:12]} b6 {[%emt 0:04:55]} 7. O-O {[%emt 0:00:44]} Bb7 {[%emt 0:02:10]} 8. c4 {[%emt 0:00:39]} Nbd7 {[%emt 0:00:19]} 9. Nc3 {[%emt 0:00:35]} Ne4 {[%emt 0:00:06]} 10. Qc2 {[%emt 0:12:10]} Nxc3 {[%emt 0:02:36]} 11. bxc3 {[%emt 0:02:45]} e5 {[%emt 0:02:05]} 12. Bh2 {[%emt 0:00:13]} Qe7 {[%emt 0:01:55]} 13. a4 {[%emt 0:00:58]} a5 {[%emt 0:00:19] Black is slightly better.} 14. Rae1 {[%emt 0:02:28]} Kh8 {[%emt 0:09:59]} 15. Nd2 {[%emt 0:01:37]} f5 {[%emt 0:02:22]} 16. Bf3 {[%emt 0:01:19]} e4 {[%emt 0:12:19]} 17. Be2 {[%emt 0:00:15]} Rae8 {[%emt 0:00:02]} 18. Kh1 {[%emt 0:22:06]} Bh6 {[%emt 0:16:26]} 19. Bd1 {[%emt 0:18:22][%cal Be2d1,Bd1f3,Bf3d5][%mdl 32]} f4 {[%emt 0:12:11]} (19... Nf6 $17) 20. exf4 $11 {[%emt 0:01:30]} Bxf4 {[%emt 0:00:04]} 21. Bxf4 {[%emt 0:06:03]} Rxf4 {[%emt 0:00:04]} 22. Kg1 {[%emt 0:00:15]} Rff8 {[%emt 0:15:17]} 23. Bf3 {[%emt 0:03:55]} Nf6 {[%emt 0:02:27]} 24. d5 {[%emt 0:01:02][%cal Rd2e4]} c6 $2 {[%emt 0:05:53] [#]} (24... Bc8 $11) 25. Nxe4 $18 {[%emt 0:01:41]} cxd5 {[%emt 0:00:38]} (25... Nxe4 $16 {was necessary.} 26. Rxe4 Qc7) 26. Nxf6 {[%emt 0:01:31]} Qxf6 {[%emt 0:01:14]} 27. Qb2 {[%emt 0:03:24]} (27. Bxd5 Bxd5 28. cxd5 Re5 29. Rxe5 Qxe5) 27... Ba6 {[%emt 0:04:14]} (27... Bc6 $142 28. Rxe8 (28. Bxd5 Bxd5 29. cxd5 Re5 $16) (28. Qxb6 Rxe1 29. Rxe1 Qxc3 $14) (28. cxd5 Bxa4 29. Rxe8 Bxe8 $16) 28... Bxe8 29. Qxb6 (29. Bxd5 Bxa4 30. Qxb6 Bd7 $18) 29... dxc4 30. Qxa5 Bf7) 28. Bxd5 {[%emt 0:00:59]} Rc8 {[%emt 0:00:29]} (28... Re5 29. Qxb6 Rxd5) 29. Re6 {[%emt 0:00:37]} ({Less strong is} 29. Qxb6 Bxc4 30. Bxc4 Rxc4 $16) 29... Qf5 {[%emt 0:00:17]} (29... Qg7 30. Re4 (30. Rxd6 Bxc4 31. Bxc4 Rxc4 $18) 30... Bb7 31. Qxb6 Bxd5 32. cxd5 Rxc3 33. Qxd6 Rd3) 30. Qxb6 {[%emt 0:01:01] [#] Threatens to win with Qd4+.} Bxc4 {[%emt 0:00:18]} 31. Qd4+ {[%emt 0:00:06] Weighted Error Value: White=0.18 (very precise) /Black=0.43.  Loses game:     	---       	Black=1      Mistake:       	---       	Black=5      Inaccurate:     	White=1     	Black=1      OK:         	White=8     	Black=5      Best:        	White=1     	Black=1} 1-0

[Event "45th FIDE Olympiad 2024"]
[Site "Budapest"]
[Date "2024.09.18"]
[Round "7.63"]
[White "Farquhar, Abner"]
[Black "Brookfield, Toby"]
[Result "1/2-1/2"]
[WhiteElo "1678"]
[BlackElo "1872"]
[Annotator "COMBH"]
[PlyCount "123"]
[EventDate "2024.09.05"]
[EventType "team-tourn"]
[EventCountry "HUN"]
[WhiteTeam "Antigua and Barbuda"]
[BlackTeam "Guernsey"]
[TimeControl "40/5400+30:1800+30"]

1. d4 Nf6 2. Nf3 c5 3. c3 e6 4. Bf4 d5 5. e3 Nc6 6. Bd3 h6 7. Nbd2 Nh5 8. Be5 Nf6 9. O-O cxd4 10. exd4 Be7 11. Qe2 O-O 12. Bg3 Nh5 13. Ne5 Nxg3 14. hxg3 Nxe5 15. dxe5 Bc5 16. Nf3 Bd7 17. g4 g5 18. Nd4 f6 19. Rad1 Rc8 20. Bb1 fxe5 21. Qxe5 Qf6 22. Qxf6 Rxf6 23. Rfe1 Rcf8 24. f3 Re8 25. Kh1 Bc6 26. Nxc6 bxc6 27. Re2 Kf7 28. Bc2 Rh8 29. Kh2 h5 30. gxh5 Rxh5+ 31. Kg3 Bd6+ 32. Kf2 g4 33. Rf1 gxf3 34. gxf3 e5 35. Ke3 e4 36. Rg2 Rh3 37. Bd1 Bc5+ 38. Kd2 exf3 39. Rg4 f2 40. a4 Be3+ 41. Kc2 Rfh6 42. Be2 c5 43. b4 c4 44. a5 Rh1 45. Rg3 Rxf1 46. Bxf1 Rh1 47. Rxe3 Rxf1 48. Rf3+ Ke6 49. Kd2 Kd6 50. Ke2 Re1+ 51. Kxf2 Re7 52. Rf4 Kc6 53. Rf5 Kd6 54. Rf3 Kc6 55. Re3 Rh7 56. Ke2 d4 57. Re5 d3+ 58. Kd1 Rh1+ 59. Kd2 Rh2+ 60. Kd1 Rh1+ 61. Kd2 Rh2+ 62. Kd1 1/2-1/2

[Event "45th FIDE Olympiad 2024"]
[Site "Budapest"]
[Date "2024.09.18"]
[Round "7.64"]
[White "Marrujo Pardo, Mauricio Emmanuel"]
[Black "Can, Emre"]
[Result "0-1"]
[ECO "B90"]
[WhiteElo "2332"]
[BlackElo "2547"]
[Annotator "TA"]
[PlyCount "100"]
[EventDate "2024.09.05"]
[EventType "team-tourn"]
[EventCountry "HUN"]
[SourceTitle "playchess.com"]
[Source "ChessBase"]
[SourceQuality "1"]
[WhiteTeam "Chile"]
[BlackTeam "Turkiye"]
[WhiteTeamCountry "CHI"]
[TimeControl "40/5400+30:1800+30"]

{[%evp 13,100,19,22,13,0,-6,-8,13,35,-25,-41,-25,-8,-17,20,-11,0,0,0,-14,-19,-18,0,-14,27,35,38,-18,14,20,19,10,14,0,0,0,0,0,16,-28,-61,-31,-27,-25,-19,-25,-16,-21,-41,-86,-85,-216,-214,-210,-220,-174,-208,-208,-212,-229,-232,-227,20,22,31,-559,-10,-513,-568,-804,-733,-800,-593,-820,-794,-774,-759,-878,-822,-29945,-29956,-29966,-7059,-29972,-29972,-29975,-29975,-29973,-29974]} 1. e4 {[%emt 0:01:11]} c5 {[%emt 0:00:21]} 2. Nf3 {[%emt 0:00:15]} d6 {[%emt 0:00:27]} 3. d4 {[%emt 0:01:29]} cxd4 {[%emt 0:00:08]} 4. Nxd4 {[%emt 0:00:05]} Nf6 {[%emt 0:00:30]} 5. Nc3 {[%emt 0:00:07]} a6 {[%emt 0:00:06]} 6. Be3 {[%emt 0:00:10]} e5 {[%emt 0:00:37]} 7. Nb3 {[%emt 0:00:08]} Be6 {[%emt 0:00:32]} 8. h3 {[%emt 0:00:19]} Be7 {[%emt 0:01:18]} 9. Qf3 {[%emt 0:00:49]} O-O {[%emt 0:03:18]} 10. g4 {[%emt 0:00:13] The position is equal.} b5 {[%emt 0:03:49]} 11. O-O-O {[%emt 0:29:57]} (11. g5 $14 Nfd7 12. h4) 11... b4 $1 $11 {[%emt 0:01:11]} 12. Nd5 {[%emt 0:08:04]} Nxd5 {[%emt 0:00:20]} 13. exd5 {[%emt 0:00:15]} Bd7 {[%emt 0:00:06]} (13... Bc8 $5) 14. Bd3 {[%emt 0:03:32]} Bb5 {[%emt 0:02:01]} 15. h4 {[%emt 0:04:28]} Nd7 {[%emt 0:03:33]} 16. h5 {[%emt 0:29:27]} Bxd3 {[%emt 0:05:42]} 17. Rxd3 {[%emt 0:03:31]} h6 {[%emt 0:12:13]} 18. Qf5 {[%emt 0:03:39]} Rc8 {[%emt 0:06:59] Black is weak on the light squares} 19. Kb1 {[%emt 0:04:21]} a5 {[%emt 0:03:13]} 20. Nd2 {[%emt 0:01:42]} (20. Nxa5 Qxa5 21. Qxd7 Ra8 $17) (20. Rg1 $14) 20... Qc7 {[%emt 0:06:08]} 21. Rc1 {[%emt 0:00:02]} Nf6 $1 {[%emt 0:00:23]} 22. c4 {[%emt 0:00:49]} Qd7 {[%emt 0:07:03]} 23. Qxd7 {[%emt 0:01:53]} Nxd7 {[%emt 0:00:02]} 24. Ne4 {[%emt 0:01:08]} f5 {[%emt 0:00:08]} 25. gxf5 {[%emt 0:00:02]} Rxf5 {[%emt 0:00:07] [#]} 26. c5 $1 {[%emt 0:01:55]} dxc5 {[%emt 0:01:17]} 27. d6 {[%emt 0:00:08][%cal Bd5d6,Bd6d7][%mdl 32]} Bd8 {[%emt 0:02:17]} 28. Rd5 {[%emt 0:03:43][%cal Re4c5]} (28. Nxc5 $2 Rxc5 29. Bxc5 e4 $19 (29... Rxh5 $2 30. Bxb4 Bb6 31. Rc7 $18)) (28. Bxc5 Rxh5 29. Be3 Rxc1+ 30. Bxc1 Rh4 $17) 28... Kf7 {[%emt 0:06:58][%cal Of7e6]} (28... Rxh5 {simplifies} 29. Nxc5 Nxc5 30. Rcxc5 Rxc5 31. Rxc5 Rf5) 29. Nxc5 {[%emt 0:01:04]} Nxc5 {[%emt 0:00:10]} 30. d7 $1 {[%emt 0:00:27]} (30. Bxc5 Rxh5 31. Rcd1 Rf5 $17) 30... Rc6 {[%emt 0:00:36][%cal Of7e6]} 31. Bxc5 {[%emt 0:00:35]} Rxh5 {[%emt 0:04:15]} (31... Ke6 $6 32. Rcd1 $11) 32. f4 {[%emt 0:00:02]} (32. Kc2 $17) 32... Rf5 {[%emt 0:03:45] aiming for ...Ke6.} 33. fxe5 {[%emt 0:00:48]} (33. Rxe5 Rxe5 34. fxe5 Ke6 $19) 33... Ke6 {[%emt 0:03:25][%csl LRd5,LRe5]} 34. Rcd1 {[%emt 0:00:24]} Rxe5 {[%emt 0:02:37]} 35. Rxe5+ {[%emt 0:00:02]} Kxe5 $19 {[%emt 0:00:07][%mdl 4096] Endgame. KRB-KRB} 36. Re1+ {[%emt 0:01:14] [#]} (36. Bd4+ Ke4 37. Bxg7 Rg6 $14) 36... Kf6 $1 {[%emt 0:07:47]} 37. Bf8 {[%emt 0:00:24] [#] Hoping for Re8.} (37. Bd4+ Kf7 38. Re8 Rd6 39. Rxd8 Rxd4) 37... Kf7 {[%emt 0:05:31]} (37... Rc7 $1 $19 {[%cal Rc7d7]} 38. Rf1+ Kg6 39. Rg1+ Kf7 40. Bxg7 h5 (40... Rxd7 41. Bxh6 b3 42. axb3 $14)) 38. Re8 $11 {[%emt 0:00:02][%mdl 1024] White has compensation.} Bg5 {[%emt 0:00:05][%csl Gg5][%cal Rc6c1]} 39. b3 $2 {[%emt 0:01:04][%mdl 8192]} (39. Rc8 $1 $14 {was the only good move.} Rg6 40. d8=Q (40. d8=N+ Kxf8 41. Nc6+ Kf7 $15) (40. d8=B Be3 $11) 40... Bxd8 41. Rxd8) 39... Rc1+ $19 {[%emt 0:00:34]} 40. Kb2 {[%emt 0:00:01][%cal Of8e7]} Rd1 {[%emt 0:00:07]} 41. Ra8 {[%emt 0:30:34]} Rxd7 {[%emt 0:31:12]} 42. Bc5 {[%emt 0:00:12]} Bd8 {[%emt 0:00:23]} 43. a3 {[%emt 0:00:00]} bxa3+ {[%emt 0:00:00]} 44. Kxa3 {[%emt 0:00:00]} h5 {[%emt 0:00:00]} 45. b4 {[%emt 0:00:00]} axb4+ {[%emt 0:00:00]} 46. Kxb4 {[%emt 0:00:00]} Be7 {[%emt 0:00:00]} 47. Bxe7 {[%emt 0:00:00]} Rxe7 {[%emt 0:00:00]} 48. Kc3 {[%emt 0:00:00]} Kf6 {[%emt 0:00:00] Black mates.} 49. Kd2 {[%emt 0:00:00]} h4 {[%emt 0:00:00]} 50. Ra5 {[%emt 0:00:00]} g5 {[%emt 0:00:00] Weighted Error Value: White=0.66/Black=0.14 (very precise) .  Loses game:     	White=2     	---        Missed win:     	---       	Black=1      Mistake:       	White=3     	---        Inaccurate:     	White=4     	Black=3      OK:         	White=11    	Black=9      Best:        	White=3     	Black=7      Strong:       	White=1     	Black=3} 0-1

[Event "45th FIDE Olympiad 2024"]
[Site "Budapest"]
[Date "2024.09.18"]
[Round "7.64"]
[White "Owen, Garth I"]
[Black "Solomon, Jonathan"]
[Result "1-0"]
[WhiteElo "1810"]
[BlackElo "1536"]
[PlyCount "119"]
[EventDate "2024.09.05"]
[EventType "team-tourn"]
[EventCountry "HUN"]
[WhiteTeam "Guernsey"]
[BlackTeam "Antigua and Barbuda"]
[TimeControl "40/5400+30:1800+30"]

1. c4 c6 2. Nf3 d5 3. b3 Nf6 4. Bb2 Nbd7 5. g3 e6 6. Bg2 Be7 7. O-O O-O 8. Qc2 b6 9. d4 Bb7 10. Nbd2 Rc8 11. e4 dxe4 12. Nxe4 Nxe4 13. Qxe4 Nf6 14. Qe2 Qc7 15. Rfe1 Bd6 16. Rac1 Qe7 17. Qd3 Ba3 18. Bxa3 Qxa3 19. Ne5 Rfd8 20. Qe3 Qe7 21. c5 Nd5 22. Bxd5 Rxd5 23. b4 b5 24. f4 Rcd8 25. Rcd1 g6 26. Re2 Kg7 27. Red2 a6 28. Qf2 f6 29. Nf3 Bc8 30. Rd3 e5 31. fxe5 f5 32. Qe3 h6 33. h4 Be6 34. Kg2 Rf8 35. Ra3 Ra8 36. Ng1 Rd7 37. Nh3 Bd5+ 38. Kg1 Be6 39. Nf4 Bd5 40. Re1 Be6 41. Re2 Qf7 42. Kh2 Qe7 43. Rc3 Rad8 44. Rd2 Re8 45. Rc1 Red8 46. Re1 Re8 47. Ra1 Red8 48. a4 Bc4 49. axb5 Bxb5 50. e6 Rd5 51. Nxd5 Rxd5 52. Re1 Kh7 53. Qf4 g5 54. hxg5 hxg5 55. Qf3 Kg6 56. Kg1 Rd8 57. Rh2 g4 58. Qf4 Qg5 59. Qc7 Re8 60. Qf7# 1-0

[Event "45th FIDE Olympiad 2024"]
[Site "Budapest"]
[Date "2024.09.18"]
[Round "7.65"]
[White "Amin, Bassem"]
[Black "Cheparinov, Ivan"]
[Result "1/2-1/2"]
[ECO "D77"]
[WhiteElo "2636"]
[BlackElo "2628"]
[Annotator "TA"]
[PlyCount "44"]
[EventDate "2024.09.05"]
[EventType "team-tourn"]
[EventCountry "HUN"]
[SourceTitle "playchess.com"]
[Source "ChessBase"]
[SourceQuality "1"]
[WhiteTeam "Egypt"]
[BlackTeam "Bulgaria"]
[WhiteTeamCountry "EGY"]
[BlackTeamCountry "BUL"]
[TimeControl "40/5400+30:1800+30"]

{[%evp 14,44,33,29,27,32,23,32,19,24,27,24,18,16,14,17,22,21,27,12,12,11,18,8,11,19,13,0,0,0,13,0,0]} 1. Nf3 d5 2. g3 g6 3. Bg2 Bg7 4. d4 Nf6 5. O-O O-O 6. c4 dxc4 7. Na3 c5 8. dxc5 c3 9. Nb5 (9. bxc3 Ne4 10. Qc2 Nxc3 $11) 9... Na6 {[%cal Bb8a6,Ba6c5,Bc5e4][%mdl 32]} 10. Nxc3 Nxc5 {White is slightly better.} 11. Be3 Nfe4 12. Nxe4 Nxe4 13. Bd4 Bxd4 14. Qxd4 Qxd4 15. Nxd4 Nd6 16. Rac1 Rd8 {The position is equal.} 17. f4 a5 18. Rc7 Ne8 {[%csl LRc7,LRd4]} 19. Rc4 ({And not} 19. Rxe7 Kf8 20. Rxe8+ (20. Re4 $2 Nf6 $19) 20... Kxe8 $17) 19... Nd6 20. Rc7 Ne8 {[%csl LRc7,LRd4]} 21. Rc4 ({Don't play} 21. Rxe7 Kf8 22. Rxe8+ (22. Re4 $2 Nf6 $19) 22... Kxe8 $17) 21... Nd6 22. Rc7 Ne8 {[%csl LRc7,LRd4] Not much happened in this game.   Weighted Error Value: White=0.03 (flawless) /Black=0.00 (flawless) .  OK:         	White=7     	Black=10} 1/2-1/2